Workbook

Sheet As at 22 12 2023
A1: Date of Launch | B1: Date of Tender Closing | C1: Date of Award | D1: Location | E1: Type of Development Allowed | F1: Site Area (m2) | G1: Plot Ratio | H1: Maximum Permissible Gross Floor Area (GFA) (m2) | I1: Name of Successful Tenderer | J1: Successful Tender Price | K1: Price Psm Per Gross Plot Ratio | L1: Lease (Years) | M1: Land Owner
A2: 2024-01-30 | B2: 2024-03-26 | C2: 2024-05-03 | D2: Plot 8, Jalan Papan | E2: Business 2 | F2: 8986 | G2: 1.4 | H2: =F2*G2 -> 12580.4 | I2: Guan Peng Hardware Pte Ltd | J2: 5460000 | K2: =J2/F2/G2 -> 434.0084576 | L2: 20 | M2: State
A3: 2023-11-28 | B3: 2024-02-27 | C3: 2024-03-28 | D3: Tuas Link Close | E3: Business 2 | F3: 27561.9 | G3: 2.5 | H3: 68904.75 | I3: Soon Hock Land Pte Ltd | J3: 88999000 | K3: 1291.623582 | L3: 30 | M3: JTC
A4: 2023-08-29 | B4: 2023-10-10 | C4: 2023-12-22 | D4: 11 Tuas Avenue 18 | E4: Business 2 | F4: 3999.9 | G4: 1.4 | H4: 5599.86 | I4: Nishio Rent All Singapore Pte Ltd | J4: 3200000 | K4: 571.4428575 | L4: 20 | M4: JTC
A5: 2023-08-29 | B5: 2023-10-24 | C5: 2023-11-24 | D5: Plot 1, Tampines North Drive 4 | E5: Business 2 | F5: 18435.4 | G5: 2.5 | H5: 46088.5 | I5: Soilbuild Group Holdings Ltd. | J5: 85823999 | K5: 1862.156482 | L5: 30 | M5: State
A6: 2023-04-25 | B6: 2023-06-20 | C6: 2023-08-11 | D6: Woodlands Avenue 8 | E6: Business 2 | F6: 5544.7 | G6: 2.5 | H6: 13861.75 | I6: Quek & Quek Civil Engineering Pte Ltd | J6: 6960000 | K6: 502.1011056 | L6: 30 | M6: JTC
A7: 2023-01-31 | B7: 2023-03-28 | C7: 2023-05-17 | D7: Plot 7, Tampines North Drive 4 | E7: Business 2 | F7: 20305.7 | G7: 2.5 | H7: 50764.25 | I7: Soon Hock Property Development Pte Ltd | J7: 113889900 | K7: 2243.506011 | L7: 30 | M7: State
A8: 2022-11-29 | B8: 2023-01-25 | C8: 2023-02-24 | D8: 25 Gul Drive | E8: Business 2 | F8: 4877.5 | G8: 1.4 | H8: 6828.5 | I8: P-One (Tuas) Pte Ltd | J8: 2558588 | K8: 374.6925386 | L8: 20 | M8: JTC
A9: 2022-08-30 | B9: 2022-10-11 | C9: 2022-12-16 | D9: Woodlands Industrial Park E7/E8 | E9: Business 2 | F9: 7657.1 | G9: 2.5 | H9: 19142.75 | I9: Zap Piling Pte Ltd | J9: 9099000 | K9: 475.3235559 | L9: 30 | M9: State
A10: 2022-07-26 | B10: 2022-09-20 | C10: 2022-12-09 | D10: Plot 2, Jalan Papan | E10: Business 2 | F10: 12400.4 | G10: 1.4 | H10: 17360.56 | I10: Setsco Services Pte Ltd | J10: 7000000 | K10: 403.2127996 | L10: 20 | M10: State
A11: 2022-04-26 | B11: 2022-06-07 | C11: 2022-07-22 | D11: Plot 9, Tampines North Drive 5 | E11: Business 2 | F11: 4911.8 | G11: 2.5 | H11: 12279.5 | I11: Joint Venture between Daiya Engineering & Construction Pte Ltd and Zulin (S.E.A.) Pte Ltd | J11: 7510000 | K11: 611.5884197 | L11: 30 | M11: State
A12: 2022-02-22 | B12: 2022-04-19 | C12: 2022-05-27 | D12: Plot 4, Jalan Papan | E12: Business 2 | F12: 5594.9 | G12: 1.4 | H12: 7832.86 | I12: Soon Li Heng Civil Engineering Pte Ltd | J12: 3399800 | K12: 434.0432486 | L12: 20 | M12: State
A13: 2021-11-30 | B13: 2022-01-11 | C13: 2022-03-18 | D13: Plot 9, Jalan Papan | E13: Business 2 | F13: 10125.3 | G13: 1.4 | H13: 14175.42 | I13: Kok Tong Transport & Engineering Works Pte Ltd | J13: 6151000 | K13: 433.9201237 | L13: 20 | M13: State
A14: 2021-08-31 | B14: 2021-10-26 | C14: 2021-11-26 | D14: Plot 7, Jalan Papan | E14: Business 2 | F14: 8814 | G14: 1.4 | H14: =F14*G14 -> 12339.6 | I14: Trans-Euro Pte Ltd | J14: 5626857.6 | K14: =J14/F14/G14 -> 456 | L14: 20 | M14: State
A15: 2021-04-27 | B15: 2021-06-22 | C15: 2021-08-11 | D15: Plot D, Gul Avenue | E15: Business 2 | F15: 5832.6 | G15: 1.4 | H15: =F15*G15 -> 8165.64 | I15: Sing Teck Leong Marketing & Resources Pte Ltd | J15: 3470397 | K15: =J15/F15/G15 -> 425 | L15: 20 | M15: JTC
A16: 2020-08-25 | B16: 2020-10-06 | C16: 2020-12-10 | D16: 160 Gul Circle | E16: Business 2 | F16: 3686 | G16: 1.4 | H16: 5160.4 | I16: New Century Integration Pte Ltd | J16: 2200000 | K16: 426.3235408 | L16: 20 | M16: JTC
A17: 2020-02-25 | B17: 2020-07-14 | C17: 2020-08-13 | D17: Plot 1, Jalan Papan | E17: Business 2 | F17: 12266.6 | G17: 1.4 | H17: 17173.24 | I17: SH M&E Engineering Pte Ltd | J17: 7880000 | K17: 458.8534254 | L17: 20 | M17: State
A18: 2019-12-31 | B18: 2020-02-25 | C18: 2020-04-03 | D18: Plot 6, Jalan Papan | E18: Business 2 | F18: 6599.9 | G18: 1.4 | H18: 9239.86 | I18: China Jingye Construction Engineering (S) Pte Ltd | J18: 4010000 | K18: 433.9892596 | L18: 20 | M18: State
A19: 2019-12-31 | B19: 2020-02-11 | C19: 2020-03-04 | D19: Tuas Avenue 6 | E19: Business 2 | F19: 5454.1 | G19: 1.4 | H19: 7635.74 | I19: Bala Engineering & Used Auto Pte. Ltd. | J19: 2805000 | K19: 367.3514289 | L19: 20 | M19: JTC
A20: 2019-10-29 | B20: 2019-12-27 | C20: 2020-01-31 | D20: Plot B Tuas West Avenue | E20: Business 2 | F20: 9508.2 | G20: 1.4 | H20: 13311.48 | I20: Progressive Builders Pte Ltd | J20: 4200500 | K20: 315.5546941 | L20: 20 | M20: JTC
A21: 2019-06-25 | B21: 2019-08-06 | C21: 2019-10-11 | D21: Plot 19, Tuas South Link 3 | E21: Business 2 | F21: 4452 | G21: 1.4 | H21: =F21*G21 -> 6232.8 | I21: Asia Metal Engineering & Trading Pte Ltd | J21: 2102019 | K21: 337.2511552 | L21: 20 | M21: State
A22: 2019-03-26 | B22: 2019-05-07 | C22: 2019-06-26 | D22: Plot 2, Gambas Way | E22: Business 2 | F22: 11958.8 | G22: 2.5 | H22: 29897 | I22: Soilbuild Group Holdings Ltd | J22: 40019900 | K22: =J22/F22/G22 -> 1338.592501 | L22: 30 | M22: State
A23: 2019-01-29 | B23: 2019-03-26 | C23: 2019-05-17 | D23: Woodlands Industrial Park E2/E5 | E23: Business 2 | F23: 5000 | G23: 2.5 | H23: 12500 | I23: Whye Wah Development & Construction Pte Ltd | J23: 3375000 | K23: 270 | L23: 20 | M23: State
A24: 2018-12-26 | B24: 2019-02-13 | C24: 2019-04-05 | D24: Woodlands Avenue 12 | E24: Business 2 | F24: 20937 | G24: 2.5 | H24: 52342.5 | I24: Soon Hock Investment Group Pte Ltd | J24: 81999000 | K24: 1566.585471 | L24: 30 | M24: State
A25: 2018-11-27 | B25: 2019-01-22 | C25: 2019-03-29 | D25: Plot 20, Tuas South Link 3 | E25: Business 2 | F25: 4456.3 | G25: 1.4 | H25: 6238.82 | I25: Transmare-Chemie (S) Pte Ltd | J25: 2050000 | K25: 328.5877778 | L25: 20 | M25: State
A26: 2018-10-30 | B26: 2018-12-26 | C26: 2019-02-20 | D26: Plot B, Jalan Lam Huat | E26: Business 2 | F26: 7694.7 | G26: 2.5 | H26: 19236.75 | I26: Carros Project Management Pte Ltd | J26: 5068888 | K26: 263.5002274 | L26: 20 | M26: State
A27: 2018-09-25 | B27: 2018-11-20 | C27: 2019-01-03 | D27: Plot 27, Tuas South Link 3 | E27: Business 2 | F27: 5953.3 | G27: 1.4 | H27: =F27*G27 -> 8334.62 | I27: L.S. Construction Pte Ltd | J27: 2880000 | K27: 345.5466476 | L27: 20 | M27: State
A28: 2018-08-28 | B28: 2018-10-09 | C28: 2018-10-25 | D28: Corporation Drive | E28: Business 2 | F28: 12800.4 | G28: 2.5 | H28: =F28*G28 -> 32001 | I28: Soilbuild Group Holdings Ltd | J28: 44090319 | K28: 1377.779413 | L28: 30 | M28: JTC
A29: 2018-05-30 | B29: 2018-08-01 | C29: 2018-09-28 | D29: Braddell Road | E29: Business 1 | F29: 9716.2 | G29: 2.5 | H29: 24290.5 | I29: BP-SH1 Pte Ltd | J29: 53588888.88 | K29: 2206.166562 | L29: 30 | M29: State
A30: 2018-05-30 | B30: 2018-07-25 | C30: 2018-09-14 | D30: Plot 10, Tampines Industrial Drive | E30: Business 2 | F30: 4702.6 | G30: 1.4 | H30: 6583.64 | I30: Blu World Pte Ltd | J30: 3200000 | K30: 486.0533079 | L30: 20 | M30: State
A31: 2018-04-24 | B31: 2018-06-19 | C31: 2018-07-27 | D31: Plot 13, Tuas South Link 1 | E31: Business 2 | F31: 24129.5 | G31: 2 | H31: =F31*G31 -> 48259 | I31: Yee Lee Development Pte Ltd | J31: 26800000 | K31: 555.3368284 | L31: 30 | M31: JTC
A32: 2018-01-30 | B32: 2018-03-27 | C32: 2018-05-23 | D32: Plot 18, Tuas South Link 3 | E32: Business 2 | F32: 4299.9 | G32: 1.4 | H32: 6019.86 | I32: LNT Coating Pte Ltd | J32: 2038000 | K32: 338.5460791 | L32: 20 | M32: State
A33: 2018-01-30 | B33: 2018-03-13 | C33: 2018-04-27 | D33: Tuas Bay Close | E33: Business 2 | F33: 27177.6 | G33: 1.7 | H33: 46201.92 | I33: Soilbuild Group Holdings Ltd | J33: 29848888 | K33: 646.0529779 | L33: 30 | M33: JTC
A34: 2017-12-26 | B34: 2018-02-27 | C34: 2018-04-27 | D34: Plot 23, Tuas South Link 3 | E34: Business 2 | F34: 6276.5 | G34: 1.4 | H34: 8787.1 | I34: Bonco Enterprise Pte Ltd | J34: 2794298 | K34: 318.0000228 | L34: 20 | M34: State
A35: 2017-09-26 | B35: 2017-11-21 | C35: 2018-01-25 | D35: Plot 16, Tuas South Link 3 | E35: Business 2 | F35: 4993.1 | G35: 1.4 | H35: =F35*G35 -> 6990.34 | I35: Soilbuild Construction Group Ltd | J35: 2633800 | K35: 376.7770952 | L35: 20 | M35: State
A36: 2017-09-05 | B36: 2017-10-24 | C36: 2017-12-13 | D36: Plot 14, Tuas South Link 3 | E36: Business 2 | F36: 5736.4 | G36: 1.4 | H36: =F36*G36 -> 8030.96 | I36: Wee Hur Construction Pte Ltd | J36: 2680000 | K36: 333.7085479 | L36: 20 | M36: State
A37: 2017-07-25 | B37: 2017-09-19 | C37: 2017-11-03 | D37: Plot 25, Tuas South Link 3 | E37: Business 2 | F37: 4699.1 | G37: 1.4 | H37: 6578.74 | I37: G.T.H. Engineering & Construction Pte Ltd | J37: 2511000 | K37: 381.6840307 | L37: 20 | M37: State
A38: 2017-06-30 | B38: 2017-08-25 | C38: 2017-10-06 | D38: Plot 10, Tuas South Link 2 | E38: Business 2 | F38: 4802 | G38: 1.4 | H38: 6722.8 | I38: Zhao Yang Geotechnic Pte Ltd | J38: 2756348 | K38: 410 | L38: 20 | M38: JTC
A39: 2017-05-30 | B39: 2017-07-25 | C39: 2017-09-14 | D39: Plot A, Jalan Lam Huat | E39: Business 2 | F39: 8000.5 | G39: 2.5 | H39: 20001.25 | I39: JC Development Pte Ltd | J39: 6160000 | K39: 307.9807512 | L39: 20 | M39: State
A40: 2017-04-25 | B40: 2017-06-20 | C40: 2017-08-16 | D40: Plot 18, Tuas South Link 3 | E40: Business 2 | F40: 4299.9 | G40: 1.4 | H40: 6019.86 | I40: LNT Coating Pte Ltd | J40: 2450600 | K40: 407.0858791 | L40: 20 | M40: State
A41: 2017-03-28 | B41: 2017-05-23 | C41: 2017-07-20 | D41: Plot 24, Tuas South Link 3 | E41: Business 2 | F41: 4687.5 | G41: 1.4 | H41: 6562.5 | I41: Pan Asian Flow Technology Pte Ltd | J41: 2500000 | K41: 380.952381 | L41: 20 | M41: State
A42: 2017-02-28 | B42: 2017-04-25 | C42: 2017-06-02 | D42: Plot 3, Tampines North Drive 3 | E42: Business 2 | F42: 5804 | G42: 2.5 | H42: 14510 | I42: BHCC Construction Pte Ltd | J42: 7000000 | K42: 482.4259132 | L42: 20 | M42: State
A43: 2017-01-31 | B43: 2017-03-28 | C43: 2017-05-05 | D43: Plot 15, Tuas South Link 3 | E43: Business 2 | F43: 4994.6 | G43: 1.4 | H43: 6992.44 | I43: Soilbuild Construction Group Ltd | J43: 2711800 | K43: 387.8188444 | L43: 20 | M43: State
A44: 2016-12-27 | B44: 2017-02-21 | C44: 2017-04-05 | D44: Plot 17, Tuas South Link 3 | E44: Business 2 | F44: 4874.2 | G44: 1.4 | H44: 6823.88 | I44: Goh Sin Guan Huat Pte Ltd | J44: 2351314.08 | K44: 344.5714286 | L44: 20 | M44: State
A45: 2016-11-29 | B45: 2017-01-24 | C45: 2017-03-15 | D45: Plot 1, Tampines Industrial Drive | E45: Business 2 | F45: 5253.5 | G45: 1.4 | H45: 7354.9 | I45: Power Partners Private Limited | J45: 3320000 | K45: 451.3997471 | L45: 20 | M45: State
A46: 2016-10-25 | B46: 2016-12-20 | C46: 2017-02-08 | D46: Plot 22, Tuas South Link 3 | E46: Business 2 | F46: 5795.4 | G46: 1.4 | H46: 8113.56 | I46: Hexacon Construction Pte Ltd | J46: 2995055 | K46: 369.1419056 | L46: 20 | M46: State
A47: 2016-09-27 | B47: 2016-11-22 | C47: 2016-12-27 | D47: Plot 11, Tuas South Link 2 | E47: Business 2 | F47: 5016.5 | G47: 1.4 | H47: 7023.1 | I47: Zhao Yang Geo-Systems Pte Ltd | J47: 2688888 | K47: 382.8634079 | L47: 20 | M47: JTC
A48: 2016-08-30 | B48: 2016-10-25 | C48: 2016-11-17 | D48: Plot 6, Tuas South Link 2 | E48: Business 2 | F48: 5050 | G48: 1.4 | H48: 7070 | I48: Wellbuilt Pte Ltd | J48: 2829060 | K48: 400.1499293 | L48: 20 | M48: JTC
A49: 2016-07-26 | B49: 2016-10-04 | C49: 2016-11-17 | D49: Plot 3, Tampines Industrial Drive | E49: Business 2 | F49: 4885.7 | G49: 1.4 | H49: 6839.98 | I49: Kok Tong Transport & Engineering Works Pte Ltd | J49: 3105360 | K49: 454.0013275 | L49: 20 | M49: State
A50: 2016-06-28 | B50: 2016-08-23 | C50: 2016-09-29 | D50: Plot 8, Tuas South Link 2 | E50: Business 2 | F50: 5953.3 | G50: 1.4 | H50: 8334.62 | I50: Aik Leong Plumbing Construction Pte Ltd | J50: 3210000 | K50: 385.1405343 | L50: 20 | M50: JTC
A51: 2016-05-31 | B51: 2016-07-26 | C51: 2016-08-10 | D51: Plot 7, Tuas South Link 2 | E51: Business 2 | F51: 5332.7 | G51: 1.4 | H51: 7465.78 | I51: SE Global Group Pte Ltd | J51: 2680000 | K51: 358.9711993 | L51: 20 | M51: JTC
A52: 2016-03-29 | B52: 2016-05-24 | C52: 2016-06-22 | D52: Woodlands Sector 2 | E52: Business 2 | F52: 13542 | G52: 1.4 | H52: 18958.8 | I52: Yee Lee Development Pte Ltd | J52: 6180000 | K52: 325.9699981 | L52: 20 | M52: JTC
A53: 2016-02-23 | B53: 2016-04-05 | C53: 2016-05-06 | D53: Plot 1, Tuas South Link 1 | E53: Business 2 | F53: 33300.1 | G53: 2 | H53: 66600.2 | I53: Diamond Land Pte Ltd | J53: 37500000 | K53: 563.0613722 | L53: 30 | M53: JTC
A54: 2016-01-26 | B54: 2016-03-22 | C54: 2016-05-06 | D54: Plot 2, Tampines Industrial Drive | E54: Business 2 | F54: 4890.7 | G54: 1.4 | H54: 6846.98 | I54: Hock Lian Seng Holdings Limited | J54: 3708000 | K54: 541.5526261 | L54: 20 | M54: State
A55: 2015-12-29 | B55: 2016-02-23 | C55: 2016-04-07 | D55: Plot 5, Tampines Industrial Drive | E55: Business 2 | F55: 5077.8 | G55: 1.4 | H55: 7108.92 | I55: Precise Development Pte Ltd | J55: 3611331.36 | K55: 508 | L55: 20 | M55: State
A56: 2015-12-29 | B56: 2016-02-23 | C56: 2016-04-07 | D56: Plot 9, Tuas South Link 2 | E56: Business 2 | F56: 4802.1 | G56: 1.4 | H56: 6722.94 | I56: Texas Petrochemical Asia Pacific Pte Ltd | J56: 2200000 | K56: 327.2377858 | L56: 20 | M56: JTC
A57: 2015-11-24 | B57: 2016-01-19 | C57: 2016-04-07 | D57: Plot 7, Tampines Industrial Drive | E57: Business 2 | F57: 4112.5 | G57: 1.4 | H57: 5757.5 | I57: Chye Thiam Maintenance Pte Ltd | J57: 2982385 | K57: 518 | L57: 20 | M57: State
A58: 2015-09-29 | B58: 2015-11-24 | C58: 2016-01-14 | D58: Plot 5, Tuas South Link 2 | E58: Business 2 | F58: 5050 | G58: 1.4 | H58: 7070 | I58: Hiap Shing Construction Pte Ltd | J58: 3000000 | K58: 424.3281471 | L58: 20 | M58: JTC
A59: 2015-08-25 | B59: 2015-10-20 | C59: 2015-12-18 | D59: Plot 12, Tampines Industrial Drive | E59: Business 2 | F59: 4794.5 | G59: 1.4 | H59: 6712.3 | I59: Soon Lee Heng Trading & Transportation Pte Ltd | J59: 4900000 | K59: 730.0031286 | L59: 20 | M59: State
A60: 2015-08-25 | B60: 2015-10-20 | C60: 2015-11-27 | D60: Tanjong Penjuru | E60: Business 2 | F60: 16307.9 | G60: 2.5 | H60: 40769.75 | I60: Trans Eurokars Pte Ltd | J60: 13000000 | K60: 318.8638635 | L60: 20 | M60: JTC
A61: 2015-07-28 | B61: 2015-09-22 | C61: 2015-10-30 | D61: Plot 9, Tampines Industrial Drive | E61: Business 2 | F61: 5778.2 | G61: 1.4 | H61: 8089.48 | I61: Zulin (S.E.A) Pte Ltd | J61: 5850000 | K61: 723.1614393 | L61: 20 | M61: State
A62: 2015-06-30 | B62: 2015-08-25 | C62: 2015-10-02 | D62: Plot 6, Tampines Industrial Drive | E62: Business 2 | F62: 4732.5 | G62: 1.4 | H62: 6625.5 | I62: Lim Wen Heng Construction Pte Ltd | J62: 4935997.6 | K62: 745.0000151 | L62: 20 | M62: State
A63: 2015-05-26 | B63: 2015-07-21 | C63: 2015-09-02 | D63: Plot 11, Tampines Industrial Drive | E63: Business 2 | F63: 5283.6 | G63: 1.4 | H63: 7397.04 | I63: Wai Fong Construction Pte Ltd | J63: 5000006 | K63: 675.9468652 | L63: 20 | M63: State
A64: 2015-04-28 | B64: 2015-06-23 | C64: 2015-07-15 | D64: Plot 4, Tuas South Link 2 | E64: Business 2 | F64: 7900 | G64: 1.4 | H64: 11060 | I64: Mundipharma Manufacturing Pte Ltd | J64: 12500000 | K64: 1130.198915 | L64: 20 | M64: JTC
A65: 2015-03-31 | B65: 2015-05-26 | C65: 2015-06-26 | D65: Plot 4, Tampines Industrial Drive | E65: Business 2 | F65: 5686.3 | G65: 1.4 | H65: 7960.82 | I65: Sim Lian Construction Co (Pte) Ltd | J65: 5900000 | K65: 741.1296826 | L65: 20 years | M65: State
A66: 2015-02-24 | B66: 2015-04-21 | C66: 2015-05-15 | D66: Plot 46, Tuas South Street 6 | E66: Business 2 | F66: 6988 | G66: 1 | H66: 6988 | I66: Tean Chay Crane Rental Pte Ltd | J66: 5611365 | K66: 803.0001431 | L66: 20 years 3 months | M66: JTC
A67: 2015-01-27 | B67: 2015-03-24 | C67: 2015-04-27 | D67: Plot 43, Tuas South Street 11​ | E67: Business 2 | F67: 8409.8 | G67: 1 | H67: 8409.8 | I67: Ho Lee Construction Pte Ltd | J67: 6996953.6 | K67: 832 | L67: 20 years 4 months | M67: State
A68: 2014-12-29 | B68: 2015-02-09 | C68: 2015-03-25 | D68: Plot 53, Tuas South Street 7 | E68: Business 2 | F68: 5038.6 | G68: 1 | H68: 5038.6 | I68: L & P Blasting Pte Ltd | J68: 5506480 | K68: 1092.859128 | L68: 20 years 4 months | M68: State
A69: 2014-12-16 | B69: 2015-02-10 | C69: 2015-03-25 | D69: Plot 42, Tuas South Street 11​ | E69: Business 2 | F69: 8409.2 | G69: 1 | H69: 8409.2 | I69: Ho Lee Construction Pte Ltd | J69: 6744178.4 | K69: 802 | L69: 20 years 5 months | M69: State
A70: 2014-11-25 | B70: 2015-01-20 | C70: 2015-02-27 | D70: Plot 8, Tampines Industrial Drive | E70: Business 2 | F70: 5033.3 | G70: 1.4 | H70: 7046.62 | I70: Soilbuild Group Holdings Ltd | J70: 5800001 | K70: 823.0897934 | L70: 20 years | M70: State
A71: 2014-11-25 | B71: 2015-01-20 | C71: 2015-02-27 | D71: Plot 40, Tuas South Street 11 | E71: Business 2 | F71: 10000 | G71: 1 | H71: 10000 | I71: Tiong Seng Contractors (Pte) Ltd | J71: 8400000 | K71: 840 | L71: 20 years 6 months | M71: State
A72: 2014-10-28 | B72: 2014-12-23 | C72: 2015-01-19 | D72: Plot 52, Tuas South Street 9 | E72: Business 2 | F72: 8369 | G72: 1 | H72: 8369 | I72: Asiaone Logistics & Warehousing Pte Ltd | J72: 7038000 | K72: 840.9606883 | L72: 20 years 7 months | M72: JTC
A73: 2014-09-29 | B73: 2014-11-24 | C73: 2014-12-23 | D73: Plot 50, Tuas South Street 9 | E73: Business 2 | F73: 8369 | G73: 1 | H73: 8369 | I73: Prospaq Group Pte Ltd | J73: 6878000 | K73: 821.842514 | L73: 20 years 8 months | M73: JTC
A74: 2014-09-29 | B74: 2014-11-24 | C74: 2014-12-23 | D74: Plot 1, Tampines North Drive 1 | E74: Business 2 | F74: 27395.2 | G74: 2.5 | H74: 68488 | I74: Goldprime Land Pte Ltd | J74: 64388888 | K74: 940.148464 | L74: 30 | M74: State
A75: 2014-09-16 | B75: 2014-10-28 | C75: 2014-11-27 | D75: Plot 41, Tuas South Street 11 | E75: Business 2 | F75: 9000 | G75: 1 | H75: 9000 | I75: Jian Man Construction Pte Ltd | J75: 7510000 | K75: 834.4444444 | L75: 20 years 10 months | M75: State
A76: 2014-08-26 | B76: 2014-10-21 | C76: 2014-11-21 | D76: Plot 48, Tuas South Street 9 | E76: Business 2 | F76: 8369 | G76: 1 | H76: 8369 | I76: New Hope Singapore Pte Ltd | J76: 6963008 | K76: 832 | L76: 20 years 9 months | M76: JTC
A77: 2014-07-29 | B77: 2014-09-09 | C77: 2014-10-23 | D77: Plot 44, Tuas South Street 7 | E77: Business 2 | F77: 5038.6 | G77: 1 | H77: 5038.6 | I77: IG Tuas Pte Ltd | J77: 5201000 | K77: 1032.231175 | L77: 20 years 10 months | M77: State
A78: 2014-06-24 | B78: 2014-08-26 | C78: 2014-10-09 | D78: Plot 12, Off Tuas South Avenue 7 | E78: Business 2 | F78: 25700 | G78: 2 | H78: 51400 | I78: Hock Lian Seng Holdings Limited | J78: 30988000 | K78: 602.8793774 | L78: 30 | M78: JTC
A79: 2014-04-29 | B79: 2014-07-01 | C79: 2014-07-24 | D79: Tuas Avenue 11 | E79: Business 2 | F79: 8922 | G79: 1.4 | H79: 12490.8 | I79: Soon Hock Realty Pte Ltd | J79: 14388000 | K79: 1151.887789 | L79: 30 | M79: JTC
A80: 2014-04-29 | B80: 2014-07-01 | C80: 2014-07-24 | D80: Plot 39, Tuas South Street 11 | E80: Business 2 | F80: 10000 | G80: 1 | H80: 10000 | I80: Tiong Aik Construction Pte Ltd | J80: 8073000 | K80: 807.3 | L80: 20 years 10 months | M80: JTC
A81: 2014-03-25 | B81: 2014-05-06 | C81: 2014-06-02 | D81: Plot 49, Tuas South Street 9 | E81: Business 2 | F81: 8369 | G81: 1 | H81: 8369 | I81: Pan Marine Blasting Abrasives Pte Ltd | J81: 5925252 | K81: 708 | L81: 21 years 2 months | M81: JTC
A82: 2014-03-25 | B82: 2014-05-06 | C82: 2014-06-02 | D82: Plot 51, Tuas South Street 9 | E82: Business 2 | F82: 8369 | G82: 1 | H82: 8369 | I82: Asiagroup Leasing Pte Ltd | J82: 5948000 | K82: 710.7181264 | L82: 21 years 2 months | M82: JTC
A83: 2014-02-25 | B83: 2014-04-08 | C83: 2014-04-29 | D83: Plot 45, Tuas South Street 6 | E83: Business 2 | F83: 6988 | G83: 1 | H83: 6988 | I83: SH Design & Build Pte Ltd | J83: 5278000 | K83: 755.2947911 | L83: 21 years 3 months | M83: JTC
A84: 2014-02-25 | B84: 2014-04-08 | C84: 2014-04-29 | D84: Plot 47, Tuas South Street 6 | E84: Business 2 | F84: 6988 | G84: 1 | H84: 6988 | I84: Soon Hock Investment Group Pte Ltd | J84: 5115000 | K84: 731.9690899 | L84: 21 years 3 months | M84: JTC
A85: 2013-12-27 | B85: 2014-02-07 | C85: 2014-04-14 | D85: Plot 6, Tuas South Street 6 | E85: Business 2 | F85: 4551.4 | G85: 1 | H85: 4551.4 | I85: H P Construction & Engineering Pte Ltd | J85: 4100000 | K85: 900.8217252 | L85: 21 years 5 months | M85: State
A86: 2013-12-27 | B86: 2014-02-07 | C86: 2014-04-14 | D86: Plot 34, Tuas South Street 13 | E86: Business 2 | F86: 7447.4 | G86: 1 | H86: 7447.4 | I86: Evan Lim & Co. Pte. Ltd. | J86: 4850000 | K86: =J86/F86/G86 -> 651.2339877 | L86: 21 years 5 months | M86: State
A87: 2013-12-27 | B87: 2014-02-07 | C87: 2014-04-14 | D87: Plot 35, Tuas South Street 11 | E87: Business 2 | F87: 7432.1 | G87: 1 | H87: 7432.1 | I87: Toko Tan Equipment Pte Ltd | J87: 4293524.17 | K87: 577.7 | L87: 21 years 5 months | M87: State
A88: 2013-12-27 | B88: 2014-02-07 | C88: 2014-04-14 | D88: Plot 38, Tuas South Street 13 | E88: Business 2 | F88: 7176.5 | G88: 1 | H88: 7176.5 | I88: AEI (China) Holdings Pte. Ltd | J88: 5038888 | K88: 702.1372535 | L88: 21 years 5 months | M88: State
A89: 2013-11-29 | B89: 2014-01-10 | C89: 2014-03-10 | D89: Plot 33, Tuas South Street 11 | E89: Business 2 | F89: 7432.1 | G89: 1 | H89: 7432.1 | I89: United Hudson Investment Pte Ltd | J89: 4808000 | K89: 646.9234806 | L89: 21 years 6 months | M89: State
A90: 2013-11-29 | B90: 2014-01-10 | C90: 2014-03-10 | D90: Plot 36, Tuas South Street 13 | E90: Business 2 | F90: 7431.7 | G90: 1 | H90: 7431.7 | I90: Quek & Quek Civil Engineering Pte Ltd | J90: 7431700 | K90: 1000 | L90: 21 years 6 months | M90: State
A91: 2013-11-29 | B91: 2014-01-10 | C91: 2014-03-10 | D91: Plot 37, Tuas South Street 11 | E91: Business 2 | F91: 7177 | G91: 1 | H91: 7177 | I91: United Hudson Investment Pte Ltd | J91: 5029200 | K91: 700.7384701 | L91: 21 years 6 months | M91: State
A92: 2013-11-29 | B92: 2014-01-10 | C92: 2014-03-10 | D92: Woodlands Industrial Park E9 | E92: Business 2 (with an integrated Heavy Vehicle Park) | F92: 18394.1 | G92: 2.5 | H92: 45985.25 | I92: Vantage Properties Pte Ltd | J92: 56180000 | K92: 1221.696087 | L92: 30 | M92: State
A93: 2013-10-31 | B93: 2013-12-12 | C93: 2014-01-28 | D93: Plot 20, Tuas South Street 10 | E93: Business 2 | F93: 3036.2 | G93: 1 | H93: 3036.2 | I93: The Hi-Fi Company Pte Ltd | J93: 3104759 | K93: 1022.580528 | L93: 21 years 7 months | M93: State
A94: 2013-10-31 | B94: 2013-12-12 | C94: 2014-01-28 | D94: Plot 22, Tuas South Street 10 | E94: Business 2 | F94: 3036 | G94: 1 | H94: 3036 | I94: Brown Metal Engineering Pte Ltd | J94: 3235320 | K94: 1065.652174 | L94: 21 years 7 months | M94: State
A95: 2013-10-31 | B95: 2013-12-12 | C95: 2014-01-28 | D95: Plot 24, Tuas South Street 10 | E95: Business 2 | F95: 4551.2 | G95: 1 | H95: 4551.2 | I95: E C Builders Pte Ltd | J95: 4600000 | K95: 1010.722447 | L95: 21 years 7 months | M95: State
A96: 2013-09-27 | B96: 2013-11-22 | C96: 2013-12-20 | D96: Tai Seng Street | E96: Business 2 - White | F96: 11,780.0 (Principal Site) | G96: 3.5 (B1-2.5 W-1.0) | I96: Mapletree Trustee Pte Ltd | J96: 120078500 | L96: 30 | M96: JTC
A97: 2013-09-27 | B97: 2013-11-08 | C97: 2013-12-06 | D97: Plot 2, Tuas South Street 6 | E97: Business 2 | F97: 3036.6 | G97: 1 | H97: 3036.6 | I97: Tiong Lee Huat Machinery & Construction Pte Ltd | J97: 3000000 | K97: 987.947046 | L97: 21 years 8 months | M97: State
A98: 2013-09-27 | B98: 2013-11-08 | C98: 2013-12-06 | D98: Plot 29, Tuas South Street 7 | E98: Business 2 | F98: 5033.1 | G98: 1 | H98: 5033.1 | I98: Poh Meng Trading & Cleaning Services Pte Ltd | J98: 4991272.91 | K98: 991.6895969 | L98: 21 years 8 months | M98: State
A99: 2013-08-29 | B99: 2013-10-10 | C99: 2013-11-08 | D99: Plot 4, Tuas South Street 6 | E99: Business 2 | F99: 3036.7 | G99: 1 | H99: 3036.7 | I99: Derman Aluminum (S) Pte Ltd | J99: 2880917 | K99: 948.6999045 | L99: 21 years 9 months | M99: State
A100: 2013-08-29 | B100: 2013-10-10 | C100: 2013-11-08 | D100: Plot 28, Tuas South Street 7 | E100: Business 2 | F100: 5047.4 | G100: 1 | H100: =F100*G100 -> 5047.4 | I100: Reclaims Enterprise Pte Ltd | J100: 5330054.4 | K100: 1056 | L100: 21 years 9 months | M100: State
A101: 2013-06-26 | B101: 2013-08-07 | C101: 2013-09-06 | D101: Tuas South Avenue 3 | E101: Business 2 | F101: 39578.5 | G101: 1.4 | H101: 55409.9 | I101: Grow-Tech Properties Pte Ltd | J101: 66777000 | K101: 1205.145651 | L101: 30 | M101: State
A102: 2013-06-26 | B102: 2013-08-07 | C102: 2013-09-06 | D102: Plot 19, Tuas South Street 10 | E102: Business 2 | F102: 4526.7 | G102: 1 | H102: 4526.7 | I102: Kian Hock Engineering Pte Ltd | J102: 4485131.29 | K102: 990.8169947 | L102: 21 years 11 months | M102: State
A103: 2013-06-26 | B103: 2013-08-07 | C103: 2013-09-06 | D103: Plot 21, Tuas South Street 10 | E103: Business 2 | F103: 3035.8 | G103: 1 | H103: 3035.8 | I103: SWHL Pte Ltd | J103: 2783640 | K103: 916.9378747 | L103: 21 years 11 months | M103: State
A104: 2013-06-26 | B104: 2013-08-07 | C104: 2013-09-06 | D104: Plot 23, Tuas South Street 10 | E104: Business 2 | F104: 3036 | G104: 1 | H104: 3036 | I104: Jay Machinery Pte Ltd | J104: 2680000 | K104: 882.740448 | L104: 21 years 11 months | M104: State
A105: 2013-05-31 | B105: 2013-07-12 | C105: 2013-07-31 | D105: Mandai Link | E105: Business 2 (Food only) | F105: 6891.2 | G105: 2.5 | H105: 17228 | I105: Wealth Property Pte Ltd | J105: 21308888 | K105: 1236.875319 | L105: 30 | M105: JTC
A106: 2013-04-30 | B106: 2013-06-11 | C106: 2013-07-09 | D106: Plot 1, Tuas South Street 6 | E106: Business 2 | F106: 4550.9 | G106: 1 | H106: 4550.9 | I106: S.H. Stainless Steel Contractor Pte Ltd | J106: 4208000 | K106: 924.6522666 | L106: 22 years 1 month | M106: State
A107: 2013-04-30 | B107: 2013-06-11 | C107: 2013-07-09 | D107: Plot 3, Tuas South Street 6 | E107: Business 2 | F107: 3036.2 | G107: 1 | H107: 3036.2 | I107: Stallion Development Pte Ltd | J107: 2600000 | K107: 856.3335749 | L107: 22 years 1 month | M107: State
A108: 2013-04-30 | B108: 2013-06-11 | C108: 2013-07-09 | D108: Plot 5, Tuas South Street 6 | E108: Business 2 | F108: 3035.8 | G108: 1 | H108: 3035.8 | I108: Jin Choon Civil Engineering Pte Ltd | J108: 2490340 | K108: 820.324132 | L108: 22 years 1 month | M108: State
A109: 2013-03-28 | B109: 2013-05-09 | C109: 2013-06-07 | D109: Loyang Way | E109: Business 2 | F109: 20633 | G109: 2.5 | H109: 51582.5 | I109: OKH Global Ltd | J109: 61636000 | K109: 1194.901372 | L109: 30 | M109: JTC
A110: 2013-02-28 | B110: 2013-04-11 | C110: 2013-05-10 | D110: Tuas Bay Close | E110: Business 2 | F110: 24971 | G110: 1.7 | H110: 42450.7 | I110: Zacd Investments Pte Ltd, Bohai Investments (Sengkang) Pte Ltd | J110: 37100000 | K110: 873.9549642 | L110: 30 | M110: JTC
A111: 2013-01-31 | B111: 2013-03-28 | C111: 2013-04-23 | D111: Tuas Bay Walk | E111: Business 2 (Food only) | F111: 5808 | G111: 1.7 | H111: 9873.6 | I111: Yee Lee Development Pte Ltd | J111: 8988000 | K111: 910.3062713 | L111: 30 | M111: JTC
A112: 2013-01-31 | B112: 2013-03-28 | C112: 2013-04-23 | D112: Buroh Crescent | E112: Business 2 | F112: 17681 | G112: 2.5 | H112: 44202.5 | I112: OKH Holdings Pte Ltd | J112: 39017000 | K112: 882.6876308 | L112: 30 | M112: JTC
A113: 2012-12-27 | B113: 2013-02-07 | C113: 2013-03-21 | D113: Tuas South Avenue 10 | E113: Business 2 | F113: 39616 | G113: 1.4 | H113: 55462.4 | I113: Soon Hock Group Pte Ltd | J113: 60999000 | K113: 1099.826189 | L113: 30 | M113: State
A114: 2012-12-27 | B114: 2013-02-07 | C114: 2013-03-21 | D114: Plot 10, Tuas South Street 8 | E114: Business 2 | F114: 3035.6 | G114: 1 | H114: 3035.6 | I114: Boilermaster Holdings Pte Ltd | J114: 2400000 | K114: 790.6179997 | L114: 22 years 5 months | M114: State
A115: 2012-12-27 | B115: 2013-02-07 | C115: 2013-03-11 | D115: Ubi Avenue 4 | E115: Business 1 | F115: 3503.5 | G115: 2.5 | H115: 8758.75 | I115: BP-Ubi Industrial Pte Ltd | J115: 16216020 | K115: 1851.408021 | L115: 30 | M115: JTC
A116: 2012-11-20 | B116: 2013-01-02 | C116: 2013-02-01 | D116: Plot 30, Tuas South Street 6 | E116: Business 2 | F116: 8597.4 | G116: 1 | H116: 8597.4 | I116: Koh Brothers Building & Civil Engineering Contractor (Pte) Ltd | J116: 6570000 | K116: 764.1845209 | L116: 22 years 6 months | M116: State
A117: 2012-11-20 | B117: 2013-01-02 | C117: 2013-02-01 | D117: Plot 32, Tuas South Street 6 | E117: Business 2 | F117: 8732.2 | G117: 1 | H117: 8732.2 | I117: SH Design & Build Pte Ltd | J117: 6650000 | K117: 761.5492087 | L117: 22 years 6 months | M117: State
A118: 2012-11-20 | B118: 2013-01-02 | C118: 2013-01-29 | D118: Buroh Street | E118: Business 2 | F118: 27400 | G118: 2.5 | H118: 68500 | I118: Capital Development Pte Ltd and ZACD Investments Pte Ltd | J118: 82100000 | K118: 1198.540146 | L118: 30 | M118: JTC
A119: 2012-10-31 | B119: 2012-12-26 | C119: 2013-01-29 | D119: Off Woodlands Avenue 10 | E119: Business 2 | F119: 10705 | G119: 2.5 | H119: 26762.5 | I119: Bohai Investments (Sengkang) Pte Ltd and Punggol Drive Investments Pte Ltd | J119: 31700000 | K119: 1184.493227 | L119: 30 | M119: JTC
A120: 2012-10-31 | B120: 2012-12-12 | C120: 2013-01-08 | D120: Plot 8, Tuas South Street 8 | E120: Business 2 | F120: 3035.6 | G120: 1 | H120: 3035.6 | I120: T.M. Transport Contractor Pte Ltd | J120: 2222200 | K120: 732.0463829 | L120: 22 years 7 months | M120: State
A121: 2012-10-31 | B121: 2012-12-12 | C121: 2013-01-08 | D121: Plot 18, Tuas South Street 8 | E121: Business 2 | F121: 4526.9 | G121: 1 | H121: 4526.9 | I121: LNT Coating Pte Ltd | J121: 3800001 | K121: 839.42676 | L121: 22 years 7 months | M121: State
A122: 2012-09-28 | B122: 2012-11-23 | C122: 2012-12-19 | D122: Plot 14, Tuas South Street 8 | E122: Business 2 | F122: 3035.9 | G122: 1 | H122: 3035.9 | I122: Greenway Environmental Waste Management Pte Ltd | J122: 2160000 | K122: 711.4858856 | L122: 22 years 8 months | M122: State
A123: 2012-09-28 | B123: 2012-11-23 | C123: 2012-12-19 | D123: Plot 16, Tuas South Street 8 | E123: Business 2 | F123: 3036 | G123: 1 | H123: 3036 | I123: Chuan Heng Hardware Trading Pte Ltd | J123: 2076624 | K123: 684 | L123: 22 years 8 months | M123: State
A124: 2012-09-28 | B124: 2012-11-23 | C124: 2012-12-05 | D124: Serangoon North Avenue 5 | E124: Business 1 | F124: 7504 | G124: 2.5 | H124: 18760 | I124: Popular Warehouse and Distribution Pte Ltd | J124: 26999000 | K124: 1439.179104 | L124: 30 | M124: JTC
A125: 2012-08-31 | B125: 2012-10-12 | C125: 2012-11-09 | D125: Plot 12, Tuas South Sreet 8 | E125: Business 2 | F125: 4550.7 | G125: 1 | H125: 4550.7 | I125: Teck Leong Industries Pte Ltd | J125: 3200899 | K125: 703.3860725 | L125: 22 years 9 months | M125: State
A126: 2012-08-31 | B126: 2012-10-12 | C126: 2012-10-29 | D126: Sunview Road | E126: Business 2 (Clean and Light Uses) | F126: 28173 | G126: 2.5 | H126: 70432.5 | I126: Asendial Pte Ltd | J126: 76571635 | K126: 1087.163383 | L126: 30 | M126: JTC
A127: 2012-07-24 | B127: 2012-09-04 | C127: 2012-10-12 | D127: Plot 26, Tuas South Street 7 | E127: Business 2 | F127: 10094.9 | G127: 1 | H127: 10094.9 | I127: 800 Super Holdings Limited | J127: 6300000 | K127: 624.0775045 | L127: 22 | M127: State
A128: 2012-07-24 | B128: 2012-09-04 | C128: 2012-10-12 | D128: Plot 31, Tuas South Street 6 | E128: Business 2 | F128: 8569.3 | G128: 1 | H128: 8569.3 | I128: Kwong Lee Holdings Pte Ltd | J128: 4900068 | K128: 571.8166011 | L128: 22 | M128: State
A129: 2012-06-29 | B129: 2012-08-24 | C129: 2012-09-10 | D129: Plot 3, Tampines Industrial Crescent | E129: Business 2 (Clean Uses Only) | F129: 38800 | G129: 1.7 | H129: 65960 | I129: Oxley Bliss Pte Ltd | J129: 55000000 | K129: 833.8386901 | L129: 30 | M129: JTC
A130: 2012-06-29 | B130: 2012-08-10 | C130: 2012-08-27 | D130: Mandai Link | E130: Business 2 (Clean and Light Uses) | F130: 22366 | G130: 2.5 | H130: 55915 | I130: Soilbuild Group Holdings Ltd | J130: 45289000 | K130: 809.9615488 | L130: 30 | M130: JTC
A131: 2012-06-29 | B131: 2012-08-10 | C131: 2012-09-28 | D131: Plot 13, Tuas South Street 7 | E131: Business 2 | F131: 4551.1 | G131: 1 | H131: 4551.1 | I131: Chip Eng Seng Contractors (1988) Pte Ltd | J131: 3815188 | K131: 838.3001912 | L131: 23 | M131: State
A132: 2012-06-29 | B132: 2012-08-10 | C132: 2012-09-28 | D132: Plot 15, Tuas South Street 8 | E132: Business 2 | F132: 3036.1 | G132: 1 | H132: 3036.1 | I132: Transco-Pac Transport & Environmental Pte Ltd | J132: 1788262.9 | K132: 589 | L132: 23 | M132: State
A133: 2012-06-29 | B133: 2012-08-10 | C133: 2012-09-28 | D133: Plot 17, Tuas South Street 7 | E133: Business 2 | F133: 3036 | G133: 1 | H133: 3036 | I133: P-One (S) Pte Ltd | J133: 1489588 | K133: 490.6416337 | L133: 23 | M133: State
A134: 2012-06-15 | B134: 2012-07-27 | C134: 2012-09-28 | D134: Plot 7, Tuas South Street 9 | E134: Business 2 | F134: 4551.1 | G134: 1 | H134: 4551.1 | I134: Ben Ching Engineering Pte Ltd | J134: 2310001 | K134: 507.5698183 | L134: 23 | M134: State
A135: 2012-06-15 | B135: 2012-07-27 | C135: 2012-09-28 | D135: Plot 9, Tuas South Street 8 | E135: Business 2 | F135: 3035.8 | G135: 1 | H135: 3035.8 | I135: Eastman Lift Trucks Pte Ltd | J135: 1449291 | K135: 477.4000264 | L135: 23 | M135: State
A136: 2012-06-15 | B136: 2012-07-27 | C136: 2012-09-28 | D136: Plot 11, Tuas South Street 8 | E136: Business 2 | F136: 3035.7 | G136: 1 | H136: 3035.7 | I136: Westtech Pte Ltd | J136: 1130000 | K136: 372.2370458 | L136: 23 | M136: State
A137: 2012-06-15 | B137: 2012-07-27 | C137: 2012-09-28 | D137: Plot 25, Tuas South Street 7 | E137: Business 2 | F137: 5738.3 | G137: 1 | H137: 5738.3 | I137: 800 Super Holdings Ltd | J137: 6000800 | K137: 1045.745256 | L137: 23 | M137: State
A138: 2012-06-15 | B138: 2012-07-27 | C138: 2012-09-28 | D138: Plot 27, Tuas South Street 7 | E138: Business 2 | F138: 5047.6 | G138: 1 | H138: 5047.6 | I138: 800 Super Holdings Ltd | J138: 3500800 | K138: 693.5573342 | L138: 23 | M138: State
A139: 2012-04-24 | B139: 2012-06-19 | C139: 2012-07-13 | D139: Tai Seng Link | E139: Business 2 (Clean and Light Uses) | F139: 4336 | G139: 2.5 | H139: 10840 | I139: OKH (Woodlands) Pte Ltd | J139: 23300000 | K139: 2149.446494 | L139: 30 | M139: JTC
A140: 2012-01-31 | B140: 2012-03-13 | C140: 2012-04-04 | D140: Serangoon North Avenue 4 (Parcel 1) | E140: Business 1 | F140: 8076 | G140: 2.5 | H140: 20190 | I140: Soon Hock Property Development Pte Ltd | J140: 47088999 | K140: 2332.293165 | L140: 58 | M140: JTC
A141: 2011-08-31 | B141: 2011-10-27 | C141: 2011-11-28 | D141: Lavender Street/ Kallang Avenue | E141: Business 1 - White | F141: 28348 | G141: 3.0 (B1-2.5 W-0.5) | I141: PLC 8 Development Pte Ltd | J141: 218300000 | L141: 60 | M141: JTC
A142: 2011-03-25 | B142: 2011-05-20 | C142: 2011-06-08 | D142: Fusionopolis Link, Fusionopolis Phase 3 | E142: Business Park - White 40% (Office) | F142: 6253 | G142: 4 | H142: 25012 | I142: Ascendas Real Estate Investment Trust | J142: 110000000 | K142: 4397.889013 | L142: 60 | M142: JTC
A143: 2011-01-24 | B143: 2011-03-07 | C143: 2011-03-15 | D143: Ubi Road 1/ Ubi Avenue 4 | E143: Business 1 | F143: 12378 | G143: 2.5 | H143: 30945 | I143: Oxley Ascend Realty Pte Ltd | J143: 72200000 | K143: 2333.171756 | L143: 60 | M143: JTC
A144: 2010-10-29 | B144: 2010-12-10 | C144: 2011-01-17 | D144: Old Toh Tuck Road/ Toh Tuck Avenue | E144: Business 2 | F144: 10083 | G144: 1.6 | H144: 16132.8 | I144: Incorporated Builders Pte Ltd | J144: 8700000 | K144: 539.2740256 | L144: 30 | M144: JTC
A145: 2010-08-20 | B145: 2010-10-18 | C145: 2010-11-04 | D145: Yishun Street 23/ Yishun Avenue 9 | E145: Business 2 | F145: 46546.9 | G145: 2.5 | H145: 116367.25 | I145: Soilbuild Group Holdings Ltd | J145: 64011800 | K145: 550.0843236 | L145: 60 | M145: State
A146: 2010-03-31 | B146: 2010-05-12 | C146: 2010-06-01 | D146: Tampines Industrial Avenue 4 | E146: Business 2 | F146: 49999.9 | G146: 0.8 | H146: 39999.92 | I146: Soon Hock Tuas Development Pte Ltd | J146: 33130000 | K146: 828.2516565 | L146: 30 | M146: State
A147: 2007-09-28 | B147: 2007-11-09 | C147: 2007-11-29 | D147: Jalan Tepong | E147: Business 2 | F147: 20867 | G147: 1.4 | H147: 29213.8 | I147: EL Development Pte Ltd | J147: 9480000 | K147: 324.5041727 | L147: 23 | M147: JTC
A148: 2007-09-21 | B148: 2007-11-02 | C148: 2007-11-29 | D148: L1 Commonwealth Drive/ Lane | E148: Business 1 | F148: 11175 | G148: 2.5 | H148: 27937.5 | I148: WHB Pte Ltd | J148: 51228228 | K148: 1833.672591 | L148: 30 | M148: JTC
A149: 2007-09-06 | B149: 2007-10-18 | C149: 2007-11-12 | D149: L7 Pioneer Road/ Tuas Avenue 11 | E149: Business 2 | F149: 21871 | G149: 1.4 | H149: 30619.4 | I149: Soilbuild Group Holdings Ltd | J149: 12200000 | K149: 398.4402046 | L149: 30 | M149: JTC
A150: 2006-12-21 | B150: 2007-02-01 | C150: 2007-03-13 | D150: L1 Enterprise Road | E150: Business 2 | F150: 20122 | G150: 1.4 | H150: 28170.8 | I150: CTE Properties Pte Ltd | J150: 11400000 | K150: =J150/F150/G150 -> 404.6743436 | L150: 30 | M150: JTC
A151: 2006-11-17 | B151: 2006-12-28 | C151: 2007-01-24 | D151: L2 Serangoon North Avenue 4 | E151: Business 1 | F151: 9458 | G151: 1.4 | H151: 13241.2 | I151: First KNG Pte Ltd | J151: 8699000 | K151: 656.9646256 | L151: 60 | M151: JTC
A152: 2006-09-29 | B152: 2006-11-10 | C152: 2006-12-01 | D152: L14 Changi North Street 1 | E152: Business 2 | F152: 15000 | G152: 1 | H152: 15000 | I152: Global Orion Properties Ltd | J152: 4300228 | K152: 286.6818667 | L152: 30 | M152: JTC
A153: 2006-06-30 | B153: 2006-08-11 | C153: 2006-09-18 | D153: Ubi Road 2/ Ubi Avenue 3/ Ubi Avenue 4/ Ubi Link | E153: Business 1 | F153: 38577.5 | G153: 2.5 | H153: 96443.75 | I153: Sim Lian Development Pte Ltd | J153: 39999000 | K153: 414.7391614 | L153: 60 | M153: JTC
A154: 2006-05-16 | B154: 2006-07-04 | C154: 2006-09-18 | D154: Serangoon North Avenue 4 (end) | E154: Business 1 | F154: 29225 | G154: 2.5 | H154: 73062.5 | I154: Orion-One Development Pte Ltd | J154: 22800228 | K154: 312.0647117 | L154: 60 | M154: JTC
A155: 2005-09-27 | B155: 2005-11-22 | C155: 2006-01-05 | D155: Pioneer Road | E155: Business 2 | F155: 19858 | G155: 1 | H155: 19858 | I155: Soilbuild Group Holdings Ltd | J155: 3028000 | K155: 152.4826266 | L155: 30 | M155: JTC
A156: 2005-02-17 | B156: 2005-04-12 | C156: 2005-04-15 | D156: Penjuru Road | E156: Business 2 | F156: 20000 | G156: 1 | H156: =F156*G156 -> 20000 | I156: Stagis Pte Ltd | J156: 5300000 | K156: 265 | L156: 30 | M156: JTC
